[Event "January 9 Early 2024"]
[Site "https://www.chess.com"]
[Date "2024.01.11"]
[Round "2"]
[White "Senthilkumar, Pranav"]
[Black "Essing, Arnold"]
[Result "0-1"]
[Board "12"]
[TimeControl "180+1"]
[WhiteFideId "2083477"]
[BlackFideId "4619862"]
[WhiteElo "2487"]
[BlackElo "2272"]
[WhiteTeam "USA"]
[BlackTeam "GER"]
[WhiteClock "0:01:02"]
[BlackClock "0:01:44"]

1. Nf3 {[%clk 0:02:45]}  d5 {[%clk 0:02:59]} 2. b3 {[%clk 0:02:45]}  c5 {[%clk 0:02:56]} 3. Bb2 {[%clk 0:02:45]}  Nc6 {[%clk 0:02:56]} 4. e3 {[%clk 0:02:45]}  Bg4 {[%clk 0:02:56]} 5. Bb5 {[%clk 0:02:45]}  Nf6 {[%clk 0:02:56]} 6. h3 {[%clk 0:02:45]}  Bh5 {[%clk 0:02:55]} 7. g4 {[%clk 0:02:39]}  Bg6 {[%clk 0:02:55]} 8. Ne5 {[%clk 0:02:36]}  Qc7 {[%clk 0:02:54]} 9. h4 {[%clk 0:02:33]}  e6 {[%clk 0:02:11]} 10. h5 {[%clk 0:02:27]}  Be4 {[%clk 0:02:11]} 11. f3 {[%clk 0:02:25]}  d4 {[%clk 0:02:11]} 12. exd4 {[%clk 0:02:16]}  cxd4 {[%clk 0:02:11]} 13. Bxd4 {[%clk 0:02:12]}  O-O-O {[%clk 0:02:11]} 14. Nxc6 {[%clk 0:02:02]}  Bxc6 {[%clk 0:02:06]} 15. Bxc6 {[%clk 0:02:00]}  Rxd4 {[%clk 0:02:06]} 16. Bb5 {[%clk 0:01:44]}  Qg3+ {[%clk 0:01:50]} 17. Kf1 {[%clk 0:01:15]}  Rf4 {[%clk 0:01:49]} 18. Be2 {[%clk 0:01:03]}  Nxg4 {[%clk 0:01:46]} 19. Qe1 {[%clk 0:01:03]}  Rxf3+ {[%clk 0:01:45]} 20. Bxf3 {[%clk 0:01:02]}  Qxf3+ {[%clk 0:01:46]} 21. Kg1 {[%clk 0:01:02]}  Bc5+ {[%clk 0:01:44]} 0-1

[Event "January 9 Early 2024"]
[Site "https://www.chess.com"]
[Date "2024.01.11"]
[Round "2"]
[White "Sokolovsky, Yahli"]
[Black "Krivenko, Dion"]
[Result "1-0"]
[Board "13"]
[TimeControl "180+1"]
[WhiteFideId "2820242"]
[BlackFideId "4508378"]
[WhiteElo "2762"]
[BlackElo "2454"]
[WhiteTeam "ISR"]
[BlackTeam "EST"]
[WhiteClock "0:01:19"]
[BlackClock "0:01:26"]

1. b3 {[%clk 0:03:00]}  e5 {[%clk 0:02:57]} 2. Bb2 {[%clk 0:03:01]}  Nc6 {[%clk 0:02:57]} 3. e3 {[%clk 0:02:58]}  g6 {[%clk 0:02:58]} 4. d4 {[%clk 0:02:40]}  exd4 {[%clk 0:02:37]} 5. Nf3 {[%clk 0:02:37]}  Bg7 {[%clk 0:02:35]} 6. Nxd4 {[%clk 0:02:36]}  Nf6 {[%clk 0:02:33]} 7. Nxc6 {[%clk 0:02:32]}  bxc6 {[%clk 0:02:34]} 8. Be2 {[%clk 0:02:26]}  O-O {[%clk 0:02:29]} 9. O-O {[%clk 0:02:27]}  d5 {[%clk 0:02:28]} 10. c4 {[%clk 0:02:18]}  Be6 {[%clk 0:02:18]} 11. Nd2 {[%clk 0:02:16]}  a5 {[%clk 0:02:17]} 12. a3 {[%clk 0:02:09]}  Qe7 {[%clk 0:02:14]} 13. Qc2 {[%clk 0:01:54]}  Rfb8 {[%clk 0:02:12]} 14. Rfc1 {[%clk 0:01:53]}  Bf5 {[%clk 0:02:07]} 15. Qd1 {[%clk 0:01:49]}  Be6 {[%clk 0:02:06]} 16. Qc2 {[%clk 0:01:41]}  Bf5 {[%clk 0:02:06]} 17. Bd3 {[%clk 0:01:41]}  Be6 {[%clk 0:01:54]} 18. cxd5 {[%clk 0:01:32]}  Bxd5 {[%clk 0:01:42]} 19. e4 {[%clk 0:01:25]}  Be6 {[%clk 0:01:40]} 20. Qxc6 {[%clk 0:01:19]}  Bxb3 {[%clk 0:01:26]} 21. Nxb3 {[%clk 0:01:19]}  Rxb3 {[%clk 0:01:26]} 22. Qxa8+ {[%clk 0:01:19]} 1-0

[Event "January 9 Early 2024"]
[Site "https://www.chess.com"]
[Date "2024.01.11"]
[Round "2"]
[White "Tatarinov, Dmitry"]
[Black "Can, Melih Kaan"]
[Result "1-0"]
[Board "14"]
[TimeControl "180+1"]
[WhiteFideId "24160067"]
[BlackFideId "6317383"]
[WhiteElo "2750"]
[BlackElo "2389"]
[WhiteTeam "RUS"]
[BlackTeam "TUR"]
[WhiteClock "0:01:55"]
[BlackClock "0:01:13"]

1. Nf3 {[%clk 0:03:00]}  Nf6 {[%clk 0:02:59]} 2. c4 {[%clk 0:03:00]}  g6 {[%clk 0:02:59]} 3. d4 {[%clk 0:03:00]}  Bg7 {[%clk 0:03:00]} 4. g3 {[%clk 0:03:00]}  O-O {[%clk 0:02:59]} 5. Bg2 {[%clk 0:03:01]}  d5 {[%clk 0:02:57]} 6. cxd5 {[%clk 0:02:59]}  Nxd5 {[%clk 0:02:56]} 7. O-O {[%clk 0:03:00]}  Nc6 {[%clk 0:02:53]} 8. e3 {[%clk 0:03:00]}  b6 {[%clk 0:02:46]} 9. Qa4 {[%clk 0:02:50]}  Bb7 {[%clk 0:02:43]} 10. Rd1 {[%clk 0:02:41]}  e6 {[%clk 0:02:36]} 11. e4 {[%clk 0:02:40]}  Nf6 {[%clk 0:02:36]} 12. Nc3 {[%clk 0:02:39]}  Qe7 {[%clk 0:02:35]} 13. e5 {[%clk 0:02:32]}  Nd7 {[%clk 0:02:27]} 14. d5 {[%clk 0:02:21]}  exd5 {[%clk 0:02:25]} 15. Nxd5 {[%clk 0:02:21]}  Qd8 {[%clk 0:02:11]} 16. Bg5 {[%clk 0:02:21]}  Qc8 {[%clk 0:02:04]} 17. Rac1 {[%clk 0:02:21]}  Ndxe5 {[%clk 0:01:53]} 18. Nxe5 {[%clk 0:02:18]}  Bxe5 {[%clk 0:01:53]} 19. Rxc6 {[%clk 0:02:16]}  Bxc6 {[%clk 0:01:53]} 20. Qxc6 {[%clk 0:02:12]}  Qg4 {[%clk 0:01:34]} 21. Qc1 {[%clk 0:02:07]}  Bxb2 {[%clk 0:01:30]} 22. Nf6+ {[%clk 0:02:03]}  Bxf6 {[%clk 0:01:28]} 23. Bxf6 {[%clk 0:02:03]}  Rfe8 {[%clk 0:01:23]} 24. Bxa8 {[%clk 0:02:02]}  Rxa8 {[%clk 0:01:20]} 25. Re1 {[%clk 0:02:00]}  Qf5 {[%clk 0:01:18]} 26. Bb2 {[%clk 0:01:57]}  Rd8 {[%clk 0:01:14]} 27. Qxc7 {[%clk 0:01:55]}  Rd7 {[%clk 0:01:13]} 28. Qc8+ {[%clk 0:01:55]} 1-0

[Event "January 9 Early 2024"]
[Site "https://www.chess.com"]
[Date "2024.01.11"]
[Round "2"]
[White "Van Kooten, Luuk"]
[Black "Shuvalov, Evgenij"]
[Result "0-1"]
[Board "15"]
[TimeControl "180+1"]
[WhiteFideId "1006533"]
[BlackFideId "4187237"]
[WhiteElo "2277"]
[BlackElo "2514"]
[WhiteTeam "NED"]
[BlackTeam "FID"]
[WhiteClock "0:01:31"]
[BlackClock "0:01:17"]

1. d4 {[%clk 0:02:59]}  Nf6 {[%clk 0:02:59]} 2. c4 {[%clk 0:02:59]}  g6 {[%clk 0:02:59]} 3. Nc3 {[%clk 0:02:59]}  d5 {[%clk 0:02:59]} 4. Nf3 {[%clk 0:02:58]}  Bg7 {[%clk 0:02:59]} 5. Qb3 {[%clk 0:02:58]}  dxc4 {[%clk 0:02:58]} 6. Qxc4 {[%clk 0:02:59]}  O-O {[%clk 0:02:57]} 7. e4 {[%clk 0:02:59]}  Nc6 {[%clk 0:02:57]} 8. Be2 {[%clk 0:02:58]}  e5 {[%clk 0:02:56]} 9. d5 {[%clk 0:02:58]}  Nd4 {[%clk 0:02:55]} 10. Nxd4 {[%clk 0:02:56]}  exd4 {[%clk 0:02:56]} 11. Qxd4 {[%clk 0:02:56]}  c6 {[%clk 0:02:56]} 12. Qc4 {[%clk 0:02:55]}  b5 {[%clk 0:02:54]} 13. Qxc6 {[%clk 0:02:54]}  Bd7 {[%clk 0:02:54]} 14. Qd6 {[%clk 0:02:52]}  Re8 {[%clk 0:02:53]} 15. f3 {[%clk 0:02:49]}  Nh5 {[%clk 0:02:40]} 16. O-O {[%clk 0:02:36]}  Bf8 {[%clk 0:02:32]} 17. Qa6 {[%clk 0:02:15]}  Bc5+ {[%clk 0:02:31]} 18. Kh1 {[%clk 0:02:06]}  Qh4 {[%clk 0:02:30]} 19. g4 {[%clk 0:02:06]}  Ng3+ {[%clk 0:02:01]} 20. Kg2 {[%clk 0:02:05]}  Nxf1 {[%clk 0:02:01]} 21. Bxf1 {[%clk 0:02:02]}  Qf2+ {[%clk 0:01:58]} 22. Kh3 {[%clk 0:02:02]}  Qxf1+ {[%clk 0:01:58]} 23. Kh4 {[%clk 0:01:55]}  Re5 {[%clk 0:01:24]} 24. Bg5 {[%clk 0:01:31]}  Bf2# {[%clk 0:01:17]} 0-1

[Event "January 9 Early 2024"]
[Site "https://www.chess.com"]
[Date "2024.01.11"]
[Round "2"]
[White "Chemin, Justo Reinaldo"]
[Black "Martinez Pla, Xavier"]
[Result "1-0"]
[Board "17"]
[TimeControl "180+1"]
[WhiteFideId "2101580"]
[BlackFideId "32074271"]
[WhiteElo "2229"]
[BlackElo "2466"]
[WhiteTeam "BRA"]
[BlackTeam "ESP"]
[WhiteClock "0:01:40"]
[BlackClock "0:01:05"]

1. d4 {[%clk 0:03:00]}  Nf6 {[%clk 0:02:59]} 2. Nf3 {[%clk 0:03:01]}  e6 {[%clk 0:02:59]} 3. Bf4 {[%clk 0:03:01]}  c5 {[%clk 0:02:59]} 4. e3 {[%clk 0:02:57]}  d5 {[%clk 0:02:56]} 5. c3 {[%clk 0:02:57]}  Bd6 {[%clk 0:02:54]} 6. Bg3 {[%clk 0:02:57]}  O-O {[%clk 0:02:54]} 7. Nbd2 {[%clk 0:02:57]}  b6 {[%clk 0:02:54]} 8. Bd3 {[%clk 0:02:57]}  Ba6 {[%clk 0:02:55]} 9. Bxa6 {[%clk 0:02:48]}  Nxa6 {[%clk 0:02:56]} 10. Ne5 {[%clk 0:02:45]}  Qc7 {[%clk 0:02:50]} 11. Qe2 {[%clk 0:02:40]}  Nb8 {[%clk 0:02:47]} 12. f4 {[%clk 0:02:39]}  Nc6 {[%clk 0:02:43]} 13. O-O {[%clk 0:02:34]}  Rac8 {[%clk 0:02:38]} 14. Qf3 {[%clk 0:02:28]}  Ne7 {[%clk 0:02:30]} 15. Bh4 {[%clk 0:02:24]}  cxd4 {[%clk 0:02:05]} 16. exd4 {[%clk 0:02:17]}  Ng6 {[%clk 0:01:45]} 17. Bxf6 {[%clk 0:02:07]}  gxf6 {[%clk 0:01:46]} 18. Ng4 {[%clk 0:01:59]}  Bxf4 {[%clk 0:01:45]} 19. Nxf6+ {[%clk 0:01:56]}  Kg7 {[%clk 0:01:40]} 20. Nh5+ {[%clk 0:01:55]}  Kh8 {[%clk 0:01:36]} 21. Nxf4 {[%clk 0:01:56]}  Rg8 {[%clk 0:01:18]} 22. Nh5 {[%clk 0:01:53]}  f5 {[%clk 0:01:16]} 23. g3 {[%clk 0:01:45]}  Rce8 {[%clk 0:01:13]} 24. Rae1 {[%clk 0:01:43]}  Qf7 {[%clk 0:01:07]} 25. Nf4 {[%clk 0:01:41]}  Nxf4 {[%clk 0:01:04]} 26. Qxf4 {[%clk 0:01:41]}  Rg4 {[%clk 0:01:05]} 27. Qxg4 {[%clk 0:01:40]} 1-0

[Event "January 9 Early 2024"]
[Site "https://www.chess.com"]
[Date "2024.01.11"]
[Round "2"]
[White "Materia, Marco"]
[Black "Filipovic, Slobodan J"]
[Result "1-0"]
[Board "18"]
[TimeControl "180+1"]
[WhiteFideId "45150451"]
[BlackFideId "939633"]
[WhiteElo "2821"]
[BlackElo "2408"]
[WhiteTeam "FRA"]
[BlackTeam "SRB"]
[WhiteClock "0:01:42"]
[BlackClock "0:01:23"]

1. Nf3 {[%clk 0:03:00]}  c5 {[%clk 0:02:59]} 2. c4 {[%clk 0:03:01]}  Nc6 {[%clk 0:02:59]} 3. Nc3 {[%clk 0:03:01]}  g6 {[%clk 0:03:00]} 4. e3 {[%clk 0:03:01]}  Bg7 {[%clk 0:02:59]} 5. d4 {[%clk 0:03:02]}  Nf6 {[%clk 0:02:59]} 6. d5 {[%clk 0:02:59]}  Na5 {[%clk 0:02:59]} 7. Be2 {[%clk 0:02:59]}  d6 {[%clk 0:02:59]} 8. O-O {[%clk 0:02:59]}  O-O {[%clk 0:03:00]} 9. Bd2 {[%clk 0:02:51]}  e5 {[%clk 0:02:58]} 10. Qc2 {[%clk 0:02:43]}  a6 {[%clk 0:02:53]} 11. Rac1 {[%clk 0:02:32]}  Bd7 {[%clk 0:02:51]} 12. e4 {[%clk 0:02:28]}  Nh5 {[%clk 0:02:50]} 13. Bg5 {[%clk 0:02:27]}  f6 {[%clk 0:02:49]} 14. Be3 {[%clk 0:02:28]}  Nf4 {[%clk 0:02:47]} 15. Bxf4 {[%clk 0:02:19]}  exf4 {[%clk 0:02:48]} 16. a3 {[%clk 0:02:20]}  b6 {[%clk 0:02:45]} 17. b4 {[%clk 0:02:19]}  Nb7 {[%clk 0:02:45]} 18. Qd2 {[%clk 0:02:13]}  g5 {[%clk 0:02:44]} 19. h3 {[%clk 0:02:12]}  h6 {[%clk 0:02:44]} 20. Nh2 {[%clk 0:02:12]}  f5 {[%clk 0:02:38]} 21. exf5 {[%clk 0:02:11]}  Bxf5 {[%clk 0:02:39]} 22. Bg4 {[%clk 0:02:12]}  Bg6 {[%clk 0:02:24]} 23. Rfe1 {[%clk 0:02:08]}  Qf6 {[%clk 0:02:18]} 24. Re6 {[%clk 0:02:06]}  Qf7 {[%clk 0:02:06]} 25. Rxd6 {[%clk 0:02:06]}  Nxd6 {[%clk 0:02:03]} 26. Be6 {[%clk 0:02:06]}  Nxc4 {[%clk 0:02:01]} 27. Qe2 {[%clk 0:02:02]}  Ne5 {[%clk 0:01:54]} 28. bxc5 {[%clk 0:01:56]}  bxc5 {[%clk 0:01:53]} 29. Ne4 {[%clk 0:01:54]}  Qxe6 {[%clk 0:01:48]} 30. dxe6 {[%clk 0:01:53]}  c4 {[%clk 0:01:48]} 31. Ng4 {[%clk 0:01:44]}  Nd3 {[%clk 0:01:48]} 32. Rxc4 {[%clk 0:01:43]}  Nb2 {[%clk 0:01:25]} 33. Rc7 {[%clk 0:01:42]}  f3 {[%clk 0:01:24]} 34. Rxg7+ {[%clk 0:01:42]}  Kxg7 {[%clk 0:01:24]} 35. Qxb2+ {[%clk 0:01:43]}  Kh7 {[%clk 0:01:23]} 36. Nef6+ {[%clk 0:01:42]} 1-0

[Event "January 9 Early 2024"]
[Site "https://www.chess.com"]
[Date "2024.01.11"]
[Round "2"]
[White "Kanyamarala, Tarun"]
[Black "Sofronie, Claudia-Ramona"]
[Result "1-0"]
[Board "19"]
[TimeControl "180+1"]
[WhiteFideId "45004714"]
[BlackFideId "1205722"]
[WhiteElo "2507"]
[BlackElo "2264"]
[WhiteTeam "IRL"]
[BlackTeam "ROU"]
[WhiteClock "0:01:39"]
[BlackClock "0:01:12"]

1. e4 {[%clk 0:03:00]}  c5 {[%clk 0:02:58]} 2. Nf3 {[%clk 0:02:59]}  Nc6 {[%clk 0:02:58]} 3. c3 {[%clk 0:02:59]}  Nf6 {[%clk 0:02:56]} 4. e5 {[%clk 0:02:58]}  Nd5 {[%clk 0:02:56]} 5. Bc4 {[%clk 0:02:59]}  Nb6 {[%clk 0:02:52]} 6. Bb3 {[%clk 0:02:59]}  c4 {[%clk 0:02:47]} 7. Bc2 {[%clk 0:02:58]}  d6 {[%clk 0:02:47]} 8. exd6 {[%clk 0:02:58]}  Qxd6 {[%clk 0:02:47]} 9. O-O {[%clk 0:02:59]}  e6 {[%clk 0:02:45]} 10. b3 {[%clk 0:02:57]}  cxb3 {[%clk 0:02:43]} 11. axb3 {[%clk 0:02:57]}  Be7 {[%clk 0:02:40]} 12. Ba3 {[%clk 0:02:42]}  Qd8 {[%clk 0:02:38]} 13. d4 {[%clk 0:02:41]}  O-O {[%clk 0:02:34]} 14. Re1 {[%clk 0:02:41]}  Bxa3 {[%clk 0:02:29]} 15. Nxa3 {[%clk 0:02:40]}  Bd7 {[%clk 0:02:26]} 16. Nb5 {[%clk 0:02:39]}  a6 {[%clk 0:02:22]} 17. Nd6 {[%clk 0:02:39]}  Rb8 {[%clk 0:02:13]} 18. h4 {[%clk 0:02:33]}  h6 {[%clk 0:02:12]} 19. Qd3 {[%clk 0:02:30]}  f5 {[%clk 0:02:07]} 20. Ne5 {[%clk 0:02:06]}  Qc7 {[%clk 0:01:50]} 21. Ndc4 {[%clk 0:01:56]}  Nxc4 {[%clk 0:01:50]} 22. bxc4 {[%clk 0:01:50]}  Nxe5 {[%clk 0:01:46]} 23. Rxe5 {[%clk 0:01:51]}  Rbd8 {[%clk 0:01:40]} 24. Rae1 {[%clk 0:01:49]}  Rfe8 {[%clk 0:01:29]} 25. Bb3 {[%clk 0:01:49]}  Qc6 {[%clk 0:01:20]} 26. c5 {[%clk 0:01:43]}  Bc8 {[%clk 0:01:17]} 27. Rxf5 {[%clk 0:01:41]}  Kh8 {[%clk 0:01:15]} 28. Rfe5 {[%clk 0:01:39]}  a5 {[%clk 0:01:12]} 29. Bc2 {[%clk 0:01:39]} 1-0

[Event "January 9 Early 2024"]
[Site "https://www.chess.com"]
[Date "2024.01.11"]
[Round "2"]
[White "Ismagilov, Damir"]
[Black "Costachi, Mihnea"]
[Result "0-1"]
[Board "20"]
[TimeControl "180+1"]
[WhiteFideId "34199982"]
[BlackFideId "1217518"]
[WhiteElo "2561"]
[BlackElo "2858"]
[WhiteTeam "RUS"]
[BlackTeam "ROU"]
[WhiteClock "0:01:30"]
[BlackClock "0:01:34"]

1. d4 {[%clk 0:03:00]}  Nf6 {[%clk 0:02:59]} 2. Bf4 {[%clk 0:03:00]}  e6 {[%clk 0:02:58]} 3. e3 {[%clk 0:03:00]}  b6 {[%clk 0:02:58]} 4. Nd2 {[%clk 0:03:01]}  Bb7 {[%clk 0:02:58]} 5. Ngf3 {[%clk 0:03:01]}  g6 {[%clk 0:02:58]} 6. h3 {[%clk 0:03:01]}  Bg7 {[%clk 0:02:59]} 7. Bd3 {[%clk 0:03:01]}  O-O {[%clk 0:02:59]} 8. O-O {[%clk 0:03:01]}  d6 {[%clk 0:03:00]} 9. c3 {[%clk 0:02:57]}  Nbd7 {[%clk 0:03:00]} 10. Bh2 {[%clk 0:02:57]}  Qe7 {[%clk 0:03:00]} 11. Qe2 {[%clk 0:02:55]}  a5 {[%clk 0:02:56]} 12. e4 {[%clk 0:02:52]}  e5 {[%clk 0:02:56]} 13. Rfe1 {[%clk 0:02:45]}  Nh5 {[%clk 0:02:56]} 14. dxe5 {[%clk 0:02:40]}  dxe5 {[%clk 0:02:53]} 15. Qe3 {[%clk 0:02:35]}  Rad8 {[%clk 0:02:51]} 16. Rad1 {[%clk 0:02:33]}  Nc5 {[%clk 0:02:49]} 17. Nc4 {[%clk 0:02:28]}  Nxd3 {[%clk 0:02:22]} 18. Rxd3 {[%clk 0:02:29]}  Rxd3 {[%clk 0:02:22]} 19. Qxd3 {[%clk 0:02:30]}  Ba6 {[%clk 0:02:23]} 20. b3 {[%clk 0:01:52]}  Rd8 {[%clk 0:02:21]} 21. Qc2 {[%clk 0:01:51]}  Bxc4 {[%clk 0:02:20]} 22. bxc4 {[%clk 0:01:52]}  Qd6 {[%clk 0:02:13]} 23. g4 {[%clk 0:01:44]}  Nf4 {[%clk 0:02:13]} 24. Bxf4 {[%clk 0:01:45]}  exf4 {[%clk 0:02:14]} 25. Re2 {[%clk 0:01:45]}  Qd1+ {[%clk 0:02:11]} 26. Kg2 {[%clk 0:01:43]}  Qxc2 {[%clk 0:01:52]} 27. Rxc2 {[%clk 0:01:44]}  Rd3 {[%clk 0:01:52]} 28. c5 {[%clk 0:01:44]}  Bxc3 {[%clk 0:01:48]} 29. cxb6 {[%clk 0:01:37]}  cxb6 {[%clk 0:01:49]} 30. Rc1 {[%clk 0:01:37]}  b5 {[%clk 0:01:46]} 31. Ne1 {[%clk 0:01:32]}  Bxe1 {[%clk 0:01:47]} 32. Rxe1 {[%clk 0:01:33]}  Ra3 {[%clk 0:01:38]} 33. Re2 {[%clk 0:01:30]}  f3+ {[%clk 0:01:36]} 34. Kf1 {[%clk 0:01:28]}  fxe2+ {[%clk 0:01:36]} 35. Kxe2 {[%clk 0:01:28]}  Rxa2+ {[%clk 0:01:36]} 36. Ke3 {[%clk 0:01:28]}  a4 {[%clk 0:01:37]} 37. Kf4 {[%clk 0:01:29]}  Rxf2+ {[%clk 0:01:36]} 38. Kg5 {[%clk 0:01:30]}  Kg7 {[%clk 0:01:34]} 0-1

[Event "January 9 Early 2024"]
[Site "https://www.chess.com"]
[Date "2024.01.11"]
[Round "2"]
[White "Bharath Subramaniyam H"]
[Black "Gatterer, Florian"]
[Result "1-0"]
[Board "21"]
[TimeControl "180+1"]
[WhiteFideId "46634827"]
[BlackFideId "811688"]
[WhiteElo "2952"]
[BlackElo "2423"]
[WhiteTeam "IND"]
[BlackTeam "ITA"]
[WhiteClock "0:02:27"]
[BlackClock "0:01:00"]

1. b3 {[%clk 0:03:00]}  e5 {[%clk 0:02:56]} 2. Bb2 {[%clk 0:03:01]}  Nc6 {[%clk 0:02:56]} 3. c4 {[%clk 0:03:01]}  Nge7 {[%clk 0:02:55]} 4. e3 {[%clk 0:03:01]}  d5 {[%clk 0:02:54]} 5. cxd5 {[%clk 0:03:01]}  Nxd5 {[%clk 0:02:55]} 6. a3 {[%clk 0:03:01]}  Be6 {[%clk 0:02:52]} 7. Qc2 {[%clk 0:03:01]}  a6 {[%clk 0:02:46]} 8. Nf3 {[%clk 0:03:01]}  f6 {[%clk 0:02:44]} 9. d4 {[%clk 0:02:59]}  exd4 {[%clk 0:02:42]} 10. Nxd4 {[%clk 0:03:00]}  Nxd4 {[%clk 0:02:41]} 11. Bxd4 {[%clk 0:03:01]}  Bd6 {[%clk 0:02:32]} 12. Bd3 {[%clk 0:02:59]}  g6 {[%clk 0:02:27]} 13. O-O {[%clk 0:02:58]}  Qe7 {[%clk 0:02:12]} 14. Nd2 {[%clk 0:02:58]}  c5 {[%clk 0:02:02]} 15. Bb2 {[%clk 0:02:57]}  b6 {[%clk 0:01:51]} 16. Ne4 {[%clk 0:02:50]}  O-O {[%clk 0:01:50]} 17. Rad1 {[%clk 0:02:46]}  b5 {[%clk 0:01:23]} 18. Nxd6 {[%clk 0:02:39]}  Qxd6 {[%clk 0:01:23]} 19. Bxg6 {[%clk 0:02:39]}  hxg6 {[%clk 0:01:15]} 20. Qxg6+ {[%clk 0:02:40]}  Kh8 {[%clk 0:01:15]} 21. e4 {[%clk 0:02:40]}  Qf4 {[%clk 0:01:06]} 22. exd5 {[%clk 0:02:38]}  Bg4 {[%clk 0:01:00]} 23. Rd3 {[%clk 0:02:27]} 1-0

[Event "January 9 Early 2024"]
[Site "https://www.chess.com"]
[Date "2024.01.11"]
[Round "2"]
[White "Yonal, Timur"]
[Black "Haring, Filip"]
[Result "1-0"]
[Board "29"]
[TimeControl "180+1"]
[WhiteFideId "44115725"]
[BlackFideId "14933080"]
[WhiteElo "2292"]
[BlackElo "2699"]
[WhiteTeam "TUR"]
[BlackTeam "SVK"]
[WhiteClock "0:02:12"]
[BlackClock "0:00:13"]

1. e4 {[%clk 0:03:00]}  e6 {[%clk 0:02:58]} 2. d4 {[%clk 0:03:00]}  d5 {[%clk 0:02:59]} 3. e5 {[%clk 0:03:00]}  c5 {[%clk 0:02:59]} 4. c3 {[%clk 0:03:00]}  Nc6 {[%clk 0:03:00]} 5. Nf3 {[%clk 0:03:00]}  Qb6 {[%clk 0:03:01]} 6. Na3 {[%clk 0:03:00]}  cxd4 {[%clk 0:02:52]} 7. cxd4 {[%clk 0:03:01]}  Nh6 {[%clk 0:02:45]} 8. Nc2 {[%clk 0:02:57]}  Bd7 {[%clk 0:02:40]} 9. Bxh6 {[%clk 0:02:56]}  gxh6 {[%clk 0:02:39]} 10. Bd3 {[%clk 0:02:55]}  Qxb2 {[%clk 0:02:34]} 11. O-O {[%clk 0:02:51]}  Qb6 {[%clk 0:02:34]} 12. Rb1 {[%clk 0:02:51]}  Qc7 {[%clk 0:02:33]} 13. Qd2 {[%clk 0:02:48]}  O-O-O {[%clk 0:02:23]} 14. Rfc1 {[%clk 0:02:48]}  Kb8 {[%clk 0:02:10]} 15. a3 {[%clk 0:02:41]}  Qa5 {[%clk 0:01:41]} 16. Nb4 {[%clk 0:02:24]}  Ka8 {[%clk 0:01:08]} 17. Qb2 {[%clk 0:02:23]}  Nxb4 {[%clk 0:01:02]} 18. axb4 {[%clk 0:02:24]}  Qb6 {[%clk 0:01:02]} 19. b5 {[%clk 0:02:17]}  Be7 {[%clk 0:01:00]} 20. Ra1 {[%clk 0:02:16]}  Rc8 {[%clk 0:00:57]} 21. Rd1 {[%clk 0:02:15]}  Kb8 {[%clk 0:00:36]} 22. Ra2 {[%clk 0:02:14]}  Rhg8 {[%clk 0:00:20]} 23. Rda1 {[%clk 0:02:13]}  h5 {[%clk 0:00:13]} 24. Rxa7 {[%clk 0:02:12]}  Qxa7 {[%clk 0:00:14]} 25. Rxa7 {[%clk 0:02:11]}  Kxa7 {[%clk 0:00:14]} 26. b6+ {[%clk 0:02:12]}  Kb8 {[%clk 0:00:13]} 27. Qa1 {[%clk 0:02:12]} 1-0

[Event "January 9 Early 2024"]
[Site "https://www.chess.com"]
[Date "2024.01.11"]
[Round "2"]
[White "Elissalt Cardenas, Hector"]
[Black "Perske, Thore"]
[Result "0-1"]
[Board "30"]
[TimeControl "180+1"]
[WhiteFideId "3500632"]
[BlackFideId "12902195"]
[WhiteElo "2368"]
[BlackElo "2628"]
[WhiteTeam "ESP"]
[BlackTeam "GER"]
[WhiteClock "0:01:00"]
[BlackClock "0:01:20"]

1. d4 {[%clk 0:03:00]}  Nf6 {[%clk 0:02:59]} 2. c4 {[%clk 0:02:59]}  g6 {[%clk 0:03:00]} 3. Nc3 {[%clk 0:02:50]}  Bg7 {[%clk 0:03:00]} 4. e4 {[%clk 0:02:50]}  O-O {[%clk 0:03:00]} 5. Be2 {[%clk 0:02:51]}  d6 {[%clk 0:02:59]} 6. Be3 {[%clk 0:02:51]}  Na6 {[%clk 0:02:59]} 7. h4 {[%clk 0:02:37]}  h5 {[%clk 0:02:54]} 8. Nh3 {[%clk 0:02:34]}  Bxh3 {[%clk 0:02:50]} 9. Rxh3 {[%clk 0:02:33]}  c5 {[%clk 0:02:51]} 10. d5 {[%clk 0:02:32]}  Nc7 {[%clk 0:02:50]} 11. f3 {[%clk 0:02:21]}  e6 {[%clk 0:02:38]} 12. Kf2 {[%clk 0:02:17]}  e5 {[%clk 0:02:32]} 13. Qd2 {[%clk 0:02:09]}  Nh7 {[%clk 0:02:12]} 14. Bd3 {[%clk 0:02:02]}  f5 {[%clk 0:02:09]} 15. Bh6 {[%clk 0:01:46]}  f4 {[%clk 0:01:46]} 16. Bxg7 {[%clk 0:01:45]}  Kxg7 {[%clk 0:01:47]} 17. Rg1 {[%clk 0:01:44]}  Rf6 {[%clk 0:01:40]} 18. a3 {[%clk 0:01:27]}  a5 {[%clk 0:01:36]} 19. Bc2 {[%clk 0:01:22]}  Qe7 {[%clk 0:01:33]} 20. Ba4 {[%clk 0:01:20]}  Raf8 {[%clk 0:01:31]} 21. Rhh1 {[%clk 0:01:18]}  R6f7 {[%clk 0:01:29]} 22. Rh3 {[%clk 0:01:18]}  b6 {[%clk 0:01:28]} 23. Rhh1 {[%clk 0:01:15]}  Kh8 {[%clk 0:01:24]} 24. Ke2 {[%clk 0:01:12]}  Rg7 {[%clk 0:01:24]} 25. Nd1 {[%clk 0:01:10]}  Rfg8 {[%clk 0:01:23]} 26. Nf2 {[%clk 0:01:07]}  g5 {[%clk 0:01:23]} 27. hxg5 {[%clk 0:01:05]}  Rxg5 {[%clk 0:01:24]} 28. Kf1 {[%clk 0:01:02]}  Qg7 {[%clk 0:01:22]} 29. Nh3 {[%clk 0:01:01]}  Rg3 {[%clk 0:01:21]} 30. Bd7 {[%clk 0:01:00]}  Qxd7 {[%clk 0:01:20]} 0-1

[Event "January 9 Early 2024"]
[Site "https://www.chess.com"]
[Date "2024.01.11"]
[Round "2"]
[White "Tari, Aryan"]
[Black "Herman, Daniel"]
[Result "0-1"]
[Board "33"]
[TimeControl "180+1"]
[WhiteFideId "1510045"]
[BlackFideId "30935008"]
[WhiteElo "2893"]
[BlackElo "2433"]
[WhiteTeam "NOR"]
[BlackTeam "USA"]
[WhiteClock "0:01:48"]
[BlackClock "0:01:01"]

1. b3 {[%clk 0:03:00]}  e5 {[%clk 0:02:59]} 2. Bb2 {[%clk 0:02:56]}  Nc6 {[%clk 0:02:59]} 3. Nf3 {[%clk 0:02:56]}  e4 {[%clk 0:02:59]} 4. Nd4 {[%clk 0:02:54]}  Nf6 {[%clk 0:02:47]} 5. e3 {[%clk 0:02:52]}  Bc5 {[%clk 0:02:45]} 6. Nf5 {[%clk 0:02:50]}  d5 {[%clk 0:02:34]} 7. Nxg7+ {[%clk 0:02:47]}  Kf8 {[%clk 0:02:33]} 8. Nh5 {[%clk 0:02:46]}  d4 {[%clk 0:02:29]} 9. Nxf6 {[%clk 0:02:36]}  Qxf6 {[%clk 0:02:28]} 10. Qh5 {[%clk 0:02:37]}  Bb6 {[%clk 0:02:23]} 11. Bb5 {[%clk 0:02:33]}  Rg8 {[%clk 0:02:15]} 12. Ba3+ {[%clk 0:02:11]}  Ke8 {[%clk 0:02:06]} 13. Qxh7 {[%clk 0:02:10]}  Rg4 {[%clk 0:01:02]} 14. h3 {[%clk 0:01:50]}  Bf5 {[%clk 0:01:01]} 15. h4 {[%clk 0:01:48]}  Bxh7 {[%clk 0:01:01]} 0-1